Cogmind - Beta 15 @@@ ROGUE MODE // 2025.07.14 @ 14:44:12 Player: vilepis Result: Destroyed by DS-MAU(R) with Subdweller Laser Performance ------------- Evolutions (0) 0 Regions Visited (2) 400 Robots Destroyed (28) 140 Value Destroyed (679) 679 Prototype IDs (2) 40 Alien Tech Used (0) 0 Bonus (0) 0 TOTAL SCORE: 1259 Bonus ------- None Cogmind --------- Core Integrity 0/250 Matter 179/300 Energy 170/170 System Corruption 2% Temperature Cool (9) Movement Rolling (105) Ox1 Location -10/Subcaves Parts ------- > --- POWER (1) -------- Makeshift Power Source > --- PROPULSION (2) --- Armored Wheel > --- UTILITY (2) ------ (None) > --- WEAPON (2) ------- Barrage Gun Bore Cannon > --- INVENTORY (5) ---- Armored Wheel Beam Rifle Peak State ------------ > --- POWER ------------ Makeshift Power Source > --- PROPULSION ------- Armored Wheel Armored Wheel > --- UTILITY ---------- Scrap Shield > --- WEAPON ----------- Barrage Gun Bore Cannon > --- INVENTORY -------- Armored Wheel Beam Rifle [Rating: 20] Favorites ----------- Power Subdweller Power Source Engine Subdweller Power Source Propulsion Armored Wheel Wheel Armored Wheel Utility Scrap Shield Processor Targeting Computer Protection Scrap Shield Weapon Beam Rifle Energy Gun Beam Rifle Ballistic Gun Barrage Gun Ballistic Cannon Bore Cannon Build | -11 -10 -10 ------- Run | Yrd Mat Sub Slots Evolved . | . . . Power . | . . . Propulsion . | . . . Utility . | . . . Weapon . | . . . Parts Attached 21 | 6 7 8 Power 4 | 1 1 2 Engine 4 | 1 1 2 Core . | . . . Reactor . | . . . Propulsion 5 | 2 2 1 Treads . | . . . Leg . | . . . Wheel 5 | 2 2 1 Hover . | . . . Flight . | . . . Utility 3 | . 2 1 Device . | . . . Storage . | . . . Processor 2 | . 2 . Hackware . | . . . Protection 1 | . . 1 Artifact . | . . . Weapon 9 | 3 2 4 Energy Gun 6 | 2 2 2 Energy Cannon . | . . . Ballistic Gun 2 | 1 . 1 Ballistic Cannon 1 | . . 1 Launcher . | . . . Special Weapon . | . . . Impact Weapon . | . . . Slashing Weapon . | . . . Piercing Weapon . | . . . Special Melee Weapon . | . . . Unidentified Prototypes . | . . . Parts Lost 5 | . 1 4 Power 1 | . 1 . Propulsion 2 | . . 2 Utility 1 | . . 1 Weapon 1 | . . 1 Highest Loss Streak 2 | . 1 2 To Critical Strikes . | . . . Average Backups 3 | . 3 2 Power . | . . . Propulsion 1 | . 1 1 Utility . | . . . Weapon 1 | . 1 1 Tool/Special . | . . . Unused Backups 3 | . . 3 Power . | . . . Propulsion 1 | . . 1 Utility 1 | . . 1 Weapon 1 | . . 1 Tool/Special . | . . . Average Slot Usage (%) 78 | . 74 81 Engine 13 | . 13 14 Wheel 25 | . 28 23 Processor 2 | . 3 2 Protection 7 | . . 12 Energy Gun 21 | . 27 18 Ballistic Cannon 5 | . . 9 Peak Build Rating 20 | 5 12 20 Average Rating 13 | 3 9 15 On Entrance 5 | . 5 12 Naked Turns . | . . . Heaviest Build 36 | 9 11 36 Greatest Support 26 | 26 26 24 Greatest Overweight (x) 2 | . . 2 Average Overweight (x) . | . . 1 Largest Inventory Capacity 5 | 5 5 5 Average Capacity 5 | 5 5 5 Most Carried 5 | . 5 5 Average Carried 3 | . 3 2 Final Capacity 5 | 5 5 5 Final Carried 5 | . 5 2 Class Distribution -------------------- 56% | Mutant 43% | Subdweller-Mutant Dominant Class ---------------- Mutant | -10/Materials Subdweller-Mutant | -10/Subcaves Resources | -11 -10 -10 ----------- Run | Yrd Mat Sub Matter Collected 547 | 148 177 222 Remotely . | . . . Salvage Created 889 | . 511 378 Parts 59 | . 34 25 Haulers Intercepted 2 | . 2 . Recyclers Shooed . | . . . Parts Field Recycled . | . . . Retrieved Matter . | . . . Parts Self-Destructed 10 | . . 10 Prevented . | . . . Kills | -11 -10 -10 ------- Run | Yrd Mat Sub Combat Hostiles Destroyed 23 | . 12 11 Guns 20 | . 12 8 Cannons 3 | . . 3 Classes Destroyed 6 | . 6 . Hauler 2 | . 2 . Operator 1 | . 1 . Watcher 2 | . 2 . Swarmer 9 | . 6 3 Grunt 6 | . 4 2 Subdweller 8 | . 2 6 Best Kill Streak 5 | . 4 5 Combat Bots Only 5 | . 3 5 Max Kills in Single Turn 2 | . 2 2 Gunslinging 1 | . . 1 Exploded . | . . . Melee . | . . . Uniques/NPCs Destroyed . | . . . Combat | -11 -10 -10 -------- Run | Yrd Mat Sub Hostile Shots Fired 96 | . 42 54 Missed 20 | . 9 11 Hits 76 | . 33 43 Projectile 76 | . 33 43 AOE 1 | . . 1 Critical Strikes 1 | . . 1 Damage Taken 1221 | . 293 928 Core 271 | . 80 191 Absorbed by Shields . | . . . Core Remaining (%) 100 | 100 . . Volleys Fired 90 | . 34 56 Largest 2 | . 2 2 Hottest 116 | . 112 116 Shots Fired 178 | . 65 113 Gun 149 | . 65 84 Cannon 29 | . . 29 Launcher . | . . . Special . | . . . Kinetic 40 | . . 40 Thermal 138 | . 65 73 Explosive . | . . . Electromagnetic . | . . . Robot Hit Streak 39 | . 7 39 Robot Miss Streak 5 | . 5 3 Penetration Max . | . . . Secondary Targets 3 | . 1 2 Max Gunslinging Chain 1 | . 1 1 Shots Hit Robots 93 | . 34 59 Core Hits 37 | . 21 16 Critical Kills 1 | . . 1 Critical Parts Destroyed 1 | . . 1 Critical Strikes 9 | . 2 7 Burn 4 | . 2 2 Destroy 5 | . . 5 Melee Attacks . | . . . Impact . | . . . Slashing . | . . . Piercing . | . . . Sneak Attacks . | . . . Combat Hostiles . | . . . Follow-up Attacks . | . . . Damage Inflicted 1348 | . 475 873 Guns 1147 | . 475 672 Cannons 201 | . . 201 Explosions . | . . . Melee . | . . . Ramming . | . . . Kinetic 288 | . . 288 Thermal 1060 | . 475 585 Explosive . | . . . Electromagnetic . | . . . Impact . | . . . Slashing . | . . . Piercing . | . . . Highest Corruption 2 | . 2 2 Average Corruption 2 | . 2 2 Corruption Purged . | . . . Corruption Blocked . | . . . Effects 19 | . . 19 Message Errors 5 | . . 5 Matter Fused 3 | . . 3 Heat Flow Errors 2 | . . 2 Energy Discharges 2 | . . 2 Data Loss (minor) 4 | . . 4 Data Loss (major) 1 | . . 1 Misfires 2 | . . 2 Overload Shots . | . . . Overflow Damage . | . . . Projectiles . | . . . Explosions . | . . . Melee . | . . . Knockbacks 4 | . . 4 Impact . | . . . Kinetic 4 | . . 4 Secondary . | . . . Self-Inflicted Damage . | . . . Shots . | . . . Rammed . | . . . Targets Rammed . | . . . Kicked . | . . . Crushed . | . . . Highest Temperature 306 | . 306 205 Average Temperature 79 | . 105 23 Received Heat Transfer 249 | . 54 195 Effects 2 | . 2 . Energy Bleed 1 | . 1 . Interference 1 | . 1 . Siege Activations . | . . . Martial Activations . | . . . Shielding Activations . | . . . Robots Disrupted . | . . . Combat Hostiles . | . . . Robots Corrupted . | . . . Combat Hostiles . | . . . Parts Fried . | . . . Impact Corruptions . | . . . Robots Melted . | . . . Combat Hostiles . | . . . Parts Melted 5 | . 4 1 Heat Transferred 2644 | . 1369 1275 Parts Sabotaged . | . . . Parts Stolen . | . . . Parts Stripped . | . . . Power Chain Reactions . | . . . Alert | -11 -10 -10 ------- Run | Yrd Mat Sub Maximum Alert Level . | . . . Low Security (%) 100 | 100 100 . Level 1 . | . . . Level 2 . | . . . Level 3 . | . . . Level 4 . | . . . Level 5 . | . . . High Security . | . . . Max Security . | . . . Peak Influence 131 | . 131 . Initial . | . . . Average 45 | . 47 . Influence Increases 415 | . 295 120 Destroy 0b10 Robot/C 300 | . 200 100 Destroy 0b10 Robot/NC 25 | . 25 . Destroy Leader 68 | . 48 20 Successful Hack 5 | . 5 . Destroy Structure 2 | . 2 . Lose Combat Pursuer 15 | . 15 . Influence Decreases 415 | . 295 120 Time Decay 411 | . 295 116 Lost Part 4 | . . 4 Squads Dispatched 2 | . 2 . Investigation 1 | . 1 . Extermination . | . . . Reinforcement 1 | . 1 . Assault . | . . . Garrison . | . . . Intercept . | . . . Searches Triggered . | . . . Construction Impeded . | . . . Haulers Reinforced . | . . . Active Scanning Responses . | . . . Cargo Convoy Interrupts . | . . . Stealth | -11 -10 -10 --------- Run | Yrd Mat Sub Distress Signals 1 | . 1 . Communications Jammed . | . . . Distress Signals . | . . . Times Spotted 39 | . 25 14 Peak Tracking Total 5 | . 5 3 Tactical Retreats 2 | . 2 . Traps | -11 -10 -10 ------- Run | Yrd Mat Sub Traps Triggered 2 | . 1 1 Indirectly . | . . . Trap Hack Attempts . | . . . Triggered . | . . . Disarmed . | . . . Reprogrammed . | . . . Reused . | . . . Traps Extracted . | . . . Installed . | . . . Triggered . | . . . Machines | -11 -10 -10 ---------- Run | Yrd Mat Sub Machines Disabled . | . . . Max in Single Turn . | . . . Machines Repaired . | . . . Machines Dismantled . | . . . Machines Sabotaged . | . . . Overloaded Fab Kills . | . . . Hacking | -11 -10 -10 --------- Run | Yrd Mat Sub Machines Accessed 1 | . 1 . Terminals 1 | . 1 . Fabricators . | . . . Repair Stations . | . . . Recycling Units . | . . . Scanalyzers . | . . . Garrison Access . | . . . Total Hacks 3 | . 3 . Successful 1 | . 1 . Failed 2 | . 2 . Catastrophic . | . . . Database Lockouts . | . . . Manual . | . . . Terminals 3 | . 3 . Fabricators . | . . . Repair Stations . | . . . Recycling Units . | . . . Scanalyzers . | . . . Garrison Access . | . . . Terminal Hacks 1 | . 1 . Prototype ID Bank 1 | . 1 . Fabricator Hacks . | . . . Repair Station Hacks . | . . . Recycling Unit Hacks . | . . . Scanalyzer . | . . . Garrison Access Hacks . | . . . Unauthorized Hacks . | . . . Terminals . | . . . Fabricators . | . . . Repair Stations . | . . . Recycling Units . | . . . Scanalyzers . | . . . Garrison Access . | . . . Data Cores Recovered 1 | . 1 . Used 1 | . 1 . Hacking Detections 1 | . 1 . Full Trace Events 1 | . 1 . Feedback Events . | . . . Feedback Blocked . | . . . Robot Schematics Acquired . | . . . Robots Built . | . . . Authchips . | . . . Time . | . . . Total Robot Build Rating . | . . . Part Schematics Acquired . | . . . Parts Built . | . . . Authchips . | . . . Time . | . . . Total Part Build Rating . | . . . Parts Repaired . | . . . Time . | . . . Parts Recycled . | . . . Recycled Matter . | . . . Retrieved Matter . | . . . Retrieved Components . | . . . Parts Scanalyzed . | . . . Part Schematics Acquired . | . . . Parts Damaged . | . . . Bothacking | -11 -10 -10 ------------ Run | Yrd Mat Sub Used RIF Installer . | . . . Robots Hacked . | . . . Non-combat . | . . . Combat . | . . . Robot Hacks Applied . | . . . Relay Couplers Released . | . . . Fabnet Peak Effective % . | . . . Robots Rewired . | . . . Allies Hacked . | . . . Hacks Repelled . | . . . Allies | -11 -10 -10 -------- Run | Yrd Mat Sub Total Allies . | . . . Largest Group . | . . . Highest-Rated Group . | . . . Highest-Rated Ally . | . . . Total Orders . | . . . Ally Attacks . | . . . Total Damage . | . . . Kills . | . . . Allies Corrupted . | . . . Allies Melted . | . . . Intel | -11 -10 -10 ------- Run | Yrd Mat Sub Active Infowar (turns) . | . . . Robot Analysis Total . | . . . Derelict Logs Recovered 3 | . . 3 Drone Launches . | . . . Drone Recoveries . | . . . Exploration | -11 -10 -10 ------------- Run | Yrd Mat Sub Turns Passed 2176 | 38 796 1342 Spaces Moved 1656 | 33 569 1054 Core 1 | 1 . . Treads . | . . . Legs . | . . . Wheels 1655 | 32 569 1054 Hover . | . . . Flight . | . . . Fastest Speed 50 | 50 85 90 Average Speed 101 | 88 89 107 Slowest Speed 120 | 90 90 120 Overloaded Moves . | . . . Propulsion Burnouts . | . . . Robots Hopped . | . . . Potential Cave-ins . | . . . Cave-ins Triggered . | . . . Exploration Rate (%) 46 | 4 88 48 Regions Visited 2 Branch Regions 1 Pre-discovered Areas 1 | . . 1 Known Exits Taken . | . . . Unknown Exits Taken 2 | 1 1 . Scrap Searched 6 | . . 6 Spaces Dug . | . . . Terrain Destroyed 5 | . . 5 Melee . | . . . Projectile 5 | . . 5 AOE . | . . . Terrain Rammed . | . . . Walls Destroyed . | . . . Machines Disabled . | . . . Actions | -11 -10 -10 --------- Run | Yrd Mat Sub Total 1974 | 38 785 1151 Wait 187 | . 168 19 Move 1654 | 32 568 1054 Hop . | . . . Pick Up 6 | . 5 1 Fast Attach 9 | 5 3 1 Attach 2 | . . 2 Detach . | . . . Swap 10 | 1 4 5 Drop 7 | . 3 4 Fire 90 | . 34 56 Melee . | . . . Ram . | . . . Kick . | . . . Crush . | . . . Escape Stasis . | . . . Rewire 5 | . . 5 Trap . | . . . Miscellaneous 4 | . . 4 Route ------- -11/Scrapyard -10/Materials (discovered 4 exits: [*Mat x2] / [*Min] / [*Sub]) -10/Subcaves (discovered 2 exits: [*Mat x2]) History --------- Turn | Location | Event 8 | -11/Scrapyard | Discovered new exit (range 15) 39 | -11/Scrapyard | Entered Materials 185 | -10/Materials | Discovered new exit (range 15) 317 | -10/Materials | Build established: Mutant 554 | -10/Materials | Discovered new exit (range 4) 640 | -10/Materials | Discovered new exit (range 6) 717 | -10/Materials | Discovered new exit (range 6) 739 | -10/Materials | Derelicts attacked the area 835 | -10/Materials | Entered Subcaves 837 | -10/Subcaves | Learned 2 Materials zone layouts 855 | -10/Subcaves | A swath of the cavern ceiling suddenly collapsed 1262 | -10/Subcaves | Shifting Twisted Machinery released Scrap Shield 1274 | -10/Subcaves | Build established: Subdweller-Mutant 1286 | -10/Subcaves | Core integrity fell below 50% 1372 | -10/Subcaves | Shifting Twisted Machinery released Spk. Treads 1387 | -10/Subcaves | A swath of the cavern ceiling suddenly collapsed 2052 | -10/Subcaves | Learned Materials stockpile data 2053 | -10/Subcaves | Discovered new exit (range 7) 2094 | -10/Subcaves | Shifting Twisted Machinery released Battle Rifle 2101 | -10/Subcaves | Shifting Twisted Machinery released Barrage Gun 2102 | -10/Subcaves | Discovered new exit (range 6) 2151 | -10/Subcaves | Ambushed by Subdwellers from Twisted Machinery 2156 | -10/Subcaves | Core integrity fell below 20% 2177 | -10/Subcaves | Destroyed by DS-MAU(R) with Subdweller Laser Last Messages --------------- 02159_ HV Slug penetrates Twisted Machinery. 02160_ DS-MAU(R): "ARGHSUB!" 02161_ Arm. Wheel destroyed. 02162_ HV Slug penetrates 8B-DU1(R). 02162_ 8B-DU1(R) suffers critical hit (Destroy). 02162_ 8B-DU1(R) knocked back. 02162_ HV Slug penetrates 8B-DU1(R). 02163_ Subatomizers dissect the Mak. Leg, destroying it. 02165_ 8B-DU1(R) suffers critical hit (Destroy). 02168_ W9-TFS(R) destroyed. 02169_ Scrap Shield destroyed. 02173_ 8B-DU1(R) knocked back. 02174_ DS-MAU(R) affixes Scrap Shield Fragment to Scrap Shield. 02175_ 8B-DU1(R) affixes Scrap Shield Fragment to Scrap Shield. 02176_ 8B-DU1(R) destroyed. 02177_ System corrupted: Component data lost. Map ----- +----------------------------------------------------+ | ??????????????#""" #### ## ##" # ###### | | ??????????????##"[ ##??######## #####????? | | ???????????????# #??????????####????????? | | ???????????????# < #??????????????????????? | | ???????????????# #??????????????????????? | | ???????????????# #??????????????????????? | | ???????????????# #??????????????????????? | | ???????????????# #??????????????????????? | | ???????????????## # #??????????????????????? | | ???????????????# ###??????????????????????? | | ???????????????## #????????????????????????? | | ???????????????## #????????????????????????? | | ???????????????# ##???????????????????????? | | ???????????????# #???????????????????????? | | ???????????????## ##???????????????????????? | | ???????????????# #????????????????????????? | | ??????????????## #####??????????????????### | | ??????????????# ##?####???????????## | | ??????????????### ## ""???????????# | | ????????????????# " """???????????#### | | ???????????????#### """ ???????????? | | ???????????????# ## "" ???????????? | | ???????????????# """ #??????????????? | | ??????????????## %& "" ##?????????????? | | ??????????????# &!=*" #?????????????? | | ??????????????##"" @%%"" ???????????? | | ??????????????##"" &*R% ???????????? | | ??????????????#""" ### ??????????? | | ??????????????#""" #?? ?????????? | | ??????????????### ##?? " ?????????? | | ????????????????###??? " ??????????? | | ?????????????????????? #??????????? | | ?????????????????????? ##??????????? | | ?????????????????????? ?? ##???????????? | | ???????????????????????? ??# #????????????? | | ????????????????????????????? ????????????? | | ?????????????????????????????? ????????????? | | ????????????????????????????????????????????? | | ????????????????????????????????????????????? | | ????????????????????????????????????????????? | | ????????????????????????????????????????????? | | ????????????????????????????????????????????? | | ????????????????????????????????????????????? | | ????????????????????????????????????????????? | | ????????????????????????????????????????????? | | ????????????????????????????????????????????? | | ????????????????????????????????????????????? | | ????????????????????????????????????????????? | | ????????????????????????????????????????????? | | ????????????????????????????????????????????? | +----------------------------------------------------+ Best States ------------- Heat Dissipation 25 Energy Generation 15 Energy Capacity 250 Matter Stores 300 Matter Capacity 300 Sight Range 16 Terrain Scan Density 10 Armor Coverage 800 Evasion (%) 42 Targeting Accuracy 10 Item Schematics ----------------- None Robot Schematics ------------------ None Fabricated ------------ Nothing Repaired ---------- Nothing Alien Tech Used ----------------- None Achievements -------------- None Challenges ------------ None Game ------ Seed PersonalActuatorWarhead Manual? 0 Play Time 00:15:33 Cumulative 20.7 hours Start 2025.07.14 @ 14:30:28 End 2025.07.14 @ 14:44:12 Sessions 1 Manual Loads 0 Difficulty Rogue Special Mode None Game No. 43 Rogue 43 Adventurer 0 Explorer 0 Win Type - Total 0 Types 0/0/0/0/0/0/0/0/0/0 Lore% 21 Gallery% 21 Achievement% 20 Wizard Run 0 Options --------- Layout 2 ASCII 0 Keyboard 0 Movement Mouse Keybinds 1 Fullscreen 2 Font 32/Smallcaps Map View 50x44 Zoom Use 0% Tactical HUD 1 Map Filters NONE Filters NONE Steam 1 RUN: d3c6d204-262b-4eef-8abb-7380a56c038f